Workbook

Sheet Лист1
A1: 1
A2: 1
A3: 1
A4: 1
A5: 1
A6: 1 | B6: Заказчик → | G6: =TODAY() -> 2024-07-26
A7: 1 | L7: Сумма
A8: 1
A9: =SUM(J12:J71) -> 0 | B9: Полугерметичные поршневые компрессоры Frascold (Италия) В комплекте серии V, Z, W входит электронное реле давления масла. Тип хладагента R134, 404, 407, 507, 22
A10: =A9 -> 0 | B10: № | C10: Модель | D10: Объемная про-ть м3/ч 50Гц | E10: Электрические характеристики | F10: трубы Ø mm | G10: Рабочий режим | H10: Кол-во в упаковке | I10: Ед. изм.
A11: =A9 -> 0 | E11: A / kW | F11: Всас./Нагнет.
A12: =J12 -> 0 | B12: 1 | C12: A1-6Y | D12: 5.47 | E12: 3,6 / 2,0 | F12: 16 / 12 | G12: 7.5 /-45 C | H12: 1 | I12: шт | L12: =J12*K12 -> 0
A13: 0 | B13: =B12+1 -> 2 | C13: A1.5-7Y | D13: 6.91 | E13: 4,5 / 2,3 | F13: 16 / 12 | G13: 7.5 /-40 C | I13: шт | L13: =J13*K13 -> 0
A14: 0 | B14: =B13+1 -> 3 | C14: В1.5-9.1Y | D14: 8.96 | E14: 5,9 / 3,3 | F14: 16 / 12 | G14: 7.5 /-45 C | I14: шт | L14: 0
A15: 0 | B15: =1+B14 -> 4 | C15: В1.5-10.1Y | D15: 9.88 | E15: 5,5 / 3,1 | F15: 16 / 12 | G15: -5 /-45 C | I15: шт | L15: 0
A16: 0 | B16: 5 | C16: В2-10.1Y | D16: 9.88 | E16: 6,7 / 3,6 | F16: 19 / 16 | G16: 7.5 /-40 C | I16: шт | L16: 0
A17: 0 | B17: 6 | C17: D2-11.1Y | D17: 11.26 | E17: 7,1 / 4,1 | F17: 22 / 16 | G17: 7.5 /-40 C | I17: шт | L17: 0
A18: 0 | B18: 7 | C18: D2-13.1Y | D18: 13.15 | E18: 7,1 / 4,1 | F18: 22 / 16 | G18: -5 /-45 C | I18: шт | L18: 0
A19: 0 | B19: 8 | C19: D3-13.1Y | D19: 13.15 | E19: 8,8 / 4,8 | F19: 28 / 16 | G19: 7.5 /-30 C | I19: шт | L19: 0
A20: 0 | B20: 9 | C20: D2-15.1Y | D20: 15.36 | E20: 8,4 / 4,7 | F20: 22 / 16 | G20: -5 /-45 C | I20: шт | L20: 0
A21: 0 | B21: 10 | C21: D3-15.1Y | D21: 15.36 | E21: 10,1 / 5,7 | F21: 28 / 16 | G21: 5 /-30 C | I21: шт | L21: 0
A22: 0 | B22: 11 | C22: D4-16.1Y | D22: 16.4 | E22: 11,6 / 6,2 | F22: 28 / 19 | G22: 7.5 /-30 C | I22: шт | L22: 0
A23: 0 | B23: =B22+1 -> 12 | C23: D3-18.1Y | D23: 17.93 | E23: 10,0 / 5,5 | F23: 28 / 16 | G23: -10 /-45 C | I23: шт | L23: 0
A24: 0 | B24: 13 | C24: D4-18.1Y | D24: 17.93 | E24: 12,5 / 6,7 | F24: 28 / 19 | G24: 5 /-30 C | I24: шт | L24: 0
A25: 0 | B25: 14 | C25: D3-19.1Y | D25: 19.12 | E25: 9,8 / 5,4 | F25: 28 / 16 | G25: -15 /-45 C | I25: шт | L25: 0
A26: 0 | B26: 15 | C26: Q5-21.1Y | D26: 21.18 | E26: 11,6 / 6,6 | F26: 28 / 19 | G26: 7.5 /-30 C | I26: шт | L26: 0
A27: 0 | B27: 16 | C27: Q4-25.1Y | D27: 24.69 | E27: 11 / 7,0 | F27: 28 / 19 | G27: -5 /-45 C | I27: шт | L27: 0
A28: 0 | B28: 17 | C28: Q5-25.1Y | D28: 24.69 | E28: 12,7 / 8,5 | F28: 28 / 22 | G28: 5 /-40 C | I28: шт | L28: 0
A29: 0 | B29: 18 | C29: Q5-28.1Y | D29: 28.02 | E29: 14 / 8,2 | F29: 35 / 22 | G29: -5 /-45 C | I29: шт | L29: 0
A30: 0 | B30: =1+B29 -> 19 | C30: Q7-28.1Y | D30: 28.02 | E30: 17,6 / 9,5 | F30: 35 / 28 | G30: 5 /-30 C | I30: шт | L30: 0
A31: 0 | B31: =1+B30 -> 20 | C31: Q5-33.1Y | D31: 32.66 | E31: 14,4 / 8,3 | F31: 35 / 28 | G31: -5 /-45 C | I31: шт | L31: 0
A32: 0 | B32: =B31+1 -> 21 | C32: Q7-33.1Y | D32: 32.66 | E32: 20 / 11,2 | F32: 35 / 28 | G32: 5 /-30 C | I32: шт | L32: 0
A33: 0 | B33: =B32+1 -> 22 | C33: Q7-36.1Y | D33: 35.86 | E33: 19,4 / 10,8 | F33: 35 / 28 | G33: -5 /-45 C | I33: шт | L33: 0
A34: 0 | B34: =B33+1 -> 23 | C34: Q9-36.1Y | D34: 35.86 | E34: 22,2 / 11,5 | F34: 35 / 28 | G34: 5 /-30 C | I34: шт | L34: 0
A35: 0 | B35: 24 | C35: Q9-39.1Y | D35: 38.57 | E35: 22,2 / 11,7 | F35: 35 / 28 | G35: -5 /-45 C | I35: шт | L35: 0
A36: 0 | B36: 25 | C36: Q10-39.1Y | D36: 38.57 | E36: 23,7 / 12,5 | F36: 35 / 28 | G36: 5 /-30 C | I36: шт | L36: 0
A37: 0 | B37: 26 | C37: S8-42Y | D37: 41.32 | E37: 20,3 / 11,8 | F37: 35 / 28 | G37: -5 /-45 C | I37: шт | L37: 0
A38: 0 | B38: =1+B37 -> 27 | C38: S12-42Y | D38: 41.32 | E38: 22,4 / 12,9 | F38: 35 / 28 | G38: 5 /-30 C | I38: шт | L38: 0
A39: 0 | B39: 28 | C39: S10-52Y | D39: 51.5 | E39: 24,5 / 14,9 | F39: 35 / 28 | G39: -5 /-45 C | I39: шт | L39: 0
A40: 0 | B40: 29 | C40: S15-52Y | D40: 51.5 | E40: 32,4 / 17,8 | F40: 42 / 28 | G40: 7.5 /-30 C | I40: шт | L40: 0
A41: 0 | B41: 30 | C41: S15-56Y | D41: 56 | E41: 30,7 / 16,5 | F41: 42 / 28 | G41: -5 /-45 C | I41: шт | L41: 0
A42: 0 | B42: 31 | C42: S20-56Y | D42: 56 | E42: 38,4 / 19,6 | F42: 42 / 28 | G42: 7.5 /-30 C | I42: шт | L42: 0
A43: 0 | B43: 32 | C43: S20-63Y | D43: 63.2 | E43: 33,0 / 17,5 | F43: 42 / 28 | G43: -5 /-45 C | I43: шт | L43: 0
A44: 0 | B44: 33 | C44: S25-63Y | D44: 63.2 | E44: 39,5 / 21,0 | F44: 42 / 28 | G44: 7.5 /-30 C | I44: шт | L44: 0
A45: 0 | B45: 34 | C45: V15-71Y | D45: 70.77 | E45: 32,2 / 19,6 | F45: 42 / 28 | G45: -5 /-45 C | I45: шт | L45: 0
A46: 0 | B46: 35 | C46: V25-71Y | D46: 70.77 | E46: 43,5 / 23,6 | F46: 54 / 35 | G46: 7.5 /-40 C | I46: шт | L46: 0
A47: 0 | B47: 36 | C47: V20-84Y | D47: 83.81 | E47: 46,2 / 24,2 | F47: 42 / 28 | G47: -5 /-45 C | I47: шт | L47: 0
A48: 0 | B48: 37 | C48: V30-84Y | D48: 83.81 | E48: 49,2 / 28,4 | F48: 54 / 35 | G48: 7.5 /-40 C | I48: шт | L48: 0
A49: 0 | B49: =1+B48 -> 38 | C49: V25-103Y | D49: 103.2 | E49: 52,3 / 28,8 | F49: 54 / 35 | G49: -10 /-45 C | I49: шт | L49: 0
A50: 0 | B50: 39 | C50: V35-103Y | D50: 103.2 | E50: 61,0 / 38,5 | F50: 54 / 35 | G50: 7.5 /-30 C | I50: шт | L50: 0
A51: 0 | B51: 40 | C51: V30-112Y | D51: 112.11 | E51: 56,0 / 33.0 | F51: 54 / 35 | G51: -10 /-45 C | I51: шт | L51: 0
A52: 0 | B52: 41 | C52: V35-112Y | D52: 112.11 | E52: 67,5 / 39.0 | F52: 54 / 35 | G52: 7.5 /-30 C | I52: шт | L52: 0
A53: 0 | B53: 42 | C53: V30-123Y | D53: 123.13 | E53: 60,5 / 35.0 | F53: 54 / 35 | G53: -10 /-45 C | I53: шт | L53: 0
A54: 0 | B54: 43 | C54: V40-123Y | D54: 123.13 | E54: 76,5 / 40.0 | F54: 54 / 35 | G54: 7.5 /-30 C | I54: шт | L54: 0
A55: 0 | B55: 44 | C55: Z25-106Y | D55: 106.16 | E55: 53,6 / 31,9 | F55: 54 / 35 | G55: -5 /-45 C | I55: шт | L55: 0
A56: 0 | B56: 45 | C56: Z35-106Y | D56: 106.16 | E56: 60,2 / 35,1 | F56: 54 / 35 | G56: 7.5 /-40 C | I56: шт | L56: 0
A57: 0 | B57: 46 | C57: Z30-126Y | D57: 125.72 | E57: 55,7 / 35,0 | F57: 54 / 35 | G57: -5 /-45 C | I57: шт | L57: 0
A58: 0 | B58: 47 | C58: Z40-126Y | D58: 125.72 | E58: 71,9 / 40,7 | F58: 67 / 42 | G58: 7.5 /-40 C | I58: шт | L58: 0
A59: 0 | B59: 48 | C59: Z40-140Y | D59: 139.68 | E59: 70,0 / 38,0 | F59: 67 / 42 | G59: -5 /-45 C | I59: шт | L59: 0
A60: 0 | B60: 49 | C60: Z50-140Y | D60: 139.68 | E60: 79,5 / 46,0 | F60: 67 / 42 | G60: 7.5 /-40 C | I60: шт | L60: 0
A61: 0 | B61: 50 | C61: Z40-154Y | D61: 154.38 | E61: 77,9 / 37,9 | F61: 67 / 42 | G61: -5 /-45 C | I61: шт | L61: 0
A62: 0 | B62: 51 | C62: Z50-154Y | D62: 154.38 | E62: 90,4 / 52,1 | F62: 67 / 42 | G62: 7.5 /-40 C | I62: шт | L62: 0
A63: 0 | B63: 52 | C63: Z40-168Y | D63: 168.16 | E63: 77,9 / 37,9 | F63: 67 / 42 | G63: -5 /-45 C | I63: шт | L63: 0
A64: 0 | B64: 53 | C64: Z50-168Y | D64: 168.16 | E64: 90,4 / 51,0 | F64: 67 / 42 | G64: 7.5 /-40 C | I64: шт | L64: 0
A65: 0 | B65: 54 | C65: Z50-185Y | D65: 185 | E65: 90,4 / 51,0 | F65: 67 / 42 | G65: -5 /-45 C | I65: шт | L65: 0
A66: 0 | B66: 55 | C66: W70-206Y | D66: 205.8 | E66: 116,8 / 66,8 | F66: 79 / 54 | G66: 5 /-30 C | I66: шт | L66: 0
A67: 0 | B67: 56 | C67: W75-228Y | D67: 227.77 | E67: 128,4 / 74,2 | F67: 79 / 54 | G67: 5 /-30 C | I67: шт | L67: 0
A68: 0 | B68: =B67+1 -> 57 | C68: W80-240Y | D68: 239.02 | E68: 135,7 / 65,4 | F68: 79 / 54 | G68: 5 /-30 C | I68: шт | L68: 0
A69: 0 | B69: =B68+1 -> 58 | C69: RSH SK220310 | D69: контроль производительности для компрессоров серия Q | I69: шт | L69: 0
A70: 0 | B70: =B69+1 -> 59 | C70: RSH SK220360 | D70: контроль производительности для компрессоров серия S | I70: шт | L70: 0
A71: 0 | B71: =B70+1 -> 60 | C71: RSH SK220400 | D71: контроль производительности для компрессоров серия V-Z-W | I71: шт | L71: 0
A72: =SUM(J72:J79) -> 0 | B72: Двухступенчатые полугерметичные поршневые компрессоры Frascold (Италия) | L72: 0
A73: =A72 -> 0 | B73: № | C73: Модель | D73: Объемная про-ть м3/ч 50Гц | E73: Электрические характеристики | F73: трубы Ø mm | G73: Рабочий режим | H73: Кол-во в упаковке | I73: Ед. изм. | L73: 0
A74: =A72 -> 0 | E74: A / kW | F74: Всас./Нагнет. | L74: 0
A75: =J75 -> 0 | B75: =B71+1 -> 61 | C75: 2Z30-102.51Y | D75: 102,9 / 51,5 | E75: 53 / 30 | F75: 42 / 35 | G75: -25 /-70 C | H75: 1 | I75: шт | L75: 0
A76: 0 | B76: =B75+1 -> 62 | C76: 2Z40-123.62Y | D76: 123,1 / 62 | E76: 71,9 / 40,7 | F76: 42 / 35 | I76: шт | L76: =J76*K76 -> 0
A77: 0 | B77: =B76+1 -> 63 | C77: Тэн картера 50W/230V серии A-B-D | I77: шт | L77: 0
A78: 0 | B78: 64 | C78: Тэн картера 70W/230V серии Q-S | I78: шт | L78: 0
A79: 0 | B79: 65 | C79: Тэн картера 150W/230V серии V-Z-W | I79: шт | L79: 0
A80: =SUM(J80:J94) -> 0 | B80: Винтовые среднетемпературные компрессоры Frascold (Италия) R22, 134, 404, 407, 507. | L80: 0
A81: =A80 -> 0 | B81: № | C81: Модель | D81: HP | E81: KW | F81: Мощность ватт R-404-507 | G81: Мощность ватт R-407 | H81: Кол-во в упаковке | I81: Ед. изм. | L81: 0
A82: =A80 -> 0 | F82: -10/40 | G82: +2/50 | L82: 0
A83: 0 | B83: =B79+1 -> 66 | C83: FVR-H-60-160Y | D83: 60 | E83: 39.4 | F83: 90035 | H83: 1 | I83: шт | L83: 0
A84: 0 | B84: =B83+1 -> 67 | C84: FVR-H-90-270Y | D84: 90 | E84: 67.2 | F84: 166029 | I84: шт | L84: 0
A85: 0 | B85: =B84+1 -> 68 | C85: CXH-02-80-230Y | D85: 80 | E85: 60 | F85: 127277 | G85: 159728 | I85: шт | L85: 0
A86: 0 | B86: =B85+1 -> 69 | C86: CXH-02-90-264Y | D86: 90 | E86: 67 | F86: 146702 | G86: 185168 | I86: шт | L86: 0
A87: 0 | B87: =B86+1 -> 70 | C87: CXH-02-100-298Y | D87: 100 | E87: 75 | F87: 165599 | G87: 210007 | I87: шт | L87: 0
A88: 0 | B88: =1+B87 -> 71 | C88: CXH-02-120-340Y | D88: 120 | E88: 90 | F88: 192492 | G88: 250320 | I88: шт | L88: 0
A89: 0 | B89: 72 | C89: CXH-52-125-372Y | D89: 125 | E89: 95 | F89: 211309 | G89: 272753 | I89: шт | L89: 0
A90: 0 | B90: 73 | C90: FVR-L-70-230Y | D90: 70 | I90: шт | L90: 0
A91: 0 | B91: 74 | C91: FVR-L-125-430Y | D91: 125 | I91: шт | L91: 0
A92: 0 | B92: 75 | C92: TOOWP123 | D92: картридж масляного фильтра для серии FVRL NRL NRH | I92: шт | L92: 0
A93: 0 | B93: 76 | C93: TOOWP125 | D93: картридж масляного фильтра для серии FVRL NRL NRH | I93: шт | L93: 0
A94: 0 | B94: 77 | C94: BLR/362204-07 | D94: картридж масляного фильтра для Bitzer | I94: шт | L94: 0
A95: =SUM(J95:J118) -> 0 | B95: Спиральные компрессоры INVOTECH | L95: 0
A96: =A95 -> 0 | B96: № | C96: Модель | D96: Электрические параметры | E96: Диаметр трубы Ø mm | F96: R22 - R407 | H96: Кол-во в упаковке | I96: Ед. изм. | L96: 0
A97: =A95 -> 0 | L97: 0
A98: 0 | B98: =B94+1 -> 78 | C98: YM34E2S-102 2HP 220v | D98: 2070w 9.4A | E98: 22 - 12mm | F98: 22400 Btu/h | H98: 1 | I98: шт | L98: 0
A99: 0 | B99: =B98+1 -> 79 | C99: YM34E1S-100 2HP | D99: 2034w 3.5A | F99: 22400 Btu/h | I99: шт | L99: 0
A100: 0 | B100: =1+B99 -> 80 | C100: YM43E1S-100 2.5HP | D100: 2297w 4.8A | F100: 25500 Btu/h | I100: шт | L100: 0
A101: 0 | B101: 81 | C101: YM49E1S-100 3HP | D101: 2547w 5.1A | F101: 29300 Btu/h | I101: шт | L101: 0
A102: 0 | B102: 82 | C102: YM60E1S-100 3.5HP | D102: 3220w 6.5A | F102: 35000 Btu/h | I102: шт | L102: 0
A103: 0 | B103: 83 | C103: YM70E1S-100 4HP | D103: 3530w 7.0A | F103: 39200 Btu/h | I103: шт | L103: 0
A104: 0 | B104: 84 | C104: YM86E1S-100 5HP | D104: 4250w 8.0A | E104: 22 - 12mm 28 - 16mm | F104: 49400 Btu/h | I104: шт | L104: 0
A105: 0 | B105: 85 | C105: YM102E1S-100 6HP | D105: 5050w 9.4A | F105: 57600 Btu/h | I105: шт | L105: 0
A106: 0 | B106: 86 | C106: YM115E1S-100 7HP | D106: 5600w 11.2A | F106: 69000 Btu/h | I106: шт | L106: 0
A107: 0 | B107: 87 | C107: YM132E1S-100 8HP | D107: 6447w 12.1A | E107: 28-22mm | F107: 76100 Btu/h | I107: шт | L107: 0
A108: 0 | B108: 88 | C108: YM158E1S-100 9HP | D108: 7921w 13.6A | F108: 87600 Btu/h | I108: шт | L108: 0
A109: 0 | B109: 89 | C109: YM182E1S-100 10HP | D109: 8928w 15.5A | F109: 101200 Btu/h | I109: шт | L109: 0
A110: 0 | B110: 90 | C110: YM200E1S-100 12HP | D110: 9671w 16.3A | E110: 28-22mm 35-22mm | F110: 116900 Btu/h | I110: шт | L110: 0
A111: 0 | B111: 91 | C111: YM210E1S-100 13HP | D111: 10170w 16.9A | F111: 121000 Btu/h | I111: шт | L111: 0
A112: 0 | B112: 92 | C112: YM240E1S-100 14HP | D112: 11600w 20.6A | F112: 130000 Btu/h | I112: шт | L112: 0
A113: 0 | B113: =1+B112 -> 93 | C113: YSM235E1G-100 13HP | D113: 11900w 21.5A | E113: 35-22mm | F113: 130000 Btu/h | I113: шт | L113: 0
A114: 0 | B114: =1+B113 -> 94 | C114: YSM260E1G-100 15HP | D114: 13150w 23A | F114: 150000 Btu/h | I114: шт | L114: 0
A115: 0 | B115: =1+B114 -> 95 | C115: YM260E1S-100 15HP | D115: 12700w 22.8A | E115: 42-28mm | F115: 143600 Btu/h | I115: шт | L115: 0
A116: 0 | B116: =1+B115 -> 96 | C116: YM280E1S-100 16HP | D116: 14100w 26.4A | F116: 160000 Btu/h | I116: шт | L116: 0
A117: 0 | B117: =1+B116 -> 97 | C117: YM350E1S-100 20HP | D117: 16650w 29.4A | F117: 200000 Btu/h | I117: шт | L117: 0
A118: 0 | B118: 98 | C118: YM410E1S-100 25HP | D118: 19400w 34.5A | F118: 250000 Btu/h | I118: шт | L118: 0
A119: =SUM(J119:J123) -> 0 | B119: серия YF Присоединение - резьба. (с опцией смотрового стекла уровня масла), Тип хладагента R404, R507 3F Рабочий режим кипения на R404-507 от 0 до -40C. | L119: 0
A120: =A119 -> 0 | B120: № | C120: Модель | D120: Электрические параметры | E120: Диаметр трубы Ø mm | H120: Кол-во в упаковке | I120: Ед. изм. | L120: 0
A121: =A119 -> 0 | L121: 0
A122: 0 | B122: =B118+1 -> 99 | C122: YF25E1S-100 3.5HP | D122: 2324w 5.0A | E122: 22-12mm | H122: 1 | I122: шт | L122: 0
A123: 0 | B123: =B122+1 -> 100 | C123: YF41E1S-100 6HP | D123: 3358w 7.0A | I123: шт | L123: 0
A124: =SUM(J124:J146) -> 0 | B124: Вентиль для компрессора и для рессивера | L124: 0
A125: 0 | B125: =B123+1 -> 101 | C125: BLR/RV-1/2 (3/4) | D125: для компрессоров серии YM 2-7HP нагнетание 12мм | I125: шт | L125: 0
A126: 0 | B126: =B125+1 -> 102 | C126: BLR/RV-5/8 (3/4) | D126: для компрессоров серии YM 5-7HP нагнетание 16мм | I126: шт | L126: 0
A127: 0 | B127: =B126+1 -> 103 | C127: BLR/RV-3/8 (1) | D127: 10mm | I127: шт | L127: 0
A128: 0 | B128: =1+B127 -> 104 | C128: BLR/RV-1/2 (1) | D128: 12mm | I128: шт | L128: 0
A129: 0 | B129: 105 | C129: BLR/RV-5/8 (1) | D129: 16mm | I129: шт | L129: 0
A130: 0 | B130: 106 | C130: VS09 5/8 (1 1/4) | D130: для компрессоров серии 2-4HP всас 16mm | I130: шт | L130: 0
A131: 0 | B131: 107 | C131: BLR/RV-3/4 (1 1/4) | D131: для компрессоров серии 2-4HP всас, 8-HP нагнетание 19mm | I131: шт | L131: 0
A132: 0 | B132: 108 | C132: BLR/RV-7/8 (1 1/4) | D132: для компрессоров серии 2-7HP всас, 8-13HP нагнетание 22mm | I132: шт | L132: 0
A133: 0 | B133: 109 | C133: VS025 1 1/8 (1 1/4) | D133: для компрессоров серии 5-7HP всас, 12-13HP нагнетание 28mm | I133: шт | L133: 0
A134: 0 | B134: 110 | C134: BLR/RV-1 1/8 (1 3/4) | D134: для компрессоров серии 8-13HP всас, нагнетание 20-25HP 28mm | I134: шт | L134: 0
A135: 0 | B135: =B134+1 -> 111 | C135: BLR/RV-1 3/8 (1 3/4) | D135: для компрессоров серии 8-13HP всас 35mm | I135: шт | L135: 0
A136: 0 | B136: =B135+1 -> 112 | C136: RW-RV-503 1 5/8 (2 1/4) | D136: 15-25HP всас 42мм | I136: шт | L136: 0
A137: 0 | B137: 113 | C137: RW-RV-504 2 1/8 (2 1/8) | D137: 15-25HP всас 54мм | I137: шт | L137: 0
A138: 0 | B138: 114 | C138: RW-FRC09 | D138: 1 1/4 12UN 5/8 адаптер | I138: шт | L138: 0
A139: 0 | B139: 115 | C139: RW-FRC15 | D139: 1 1/4 12UN 1 1/8 адаптер | I139: шт | L139: 0
A140: 0 | B140: 116 | C140: RW-FRC19 | D140: 1 3/4 12UN 1 3/8 адаптер | I140: шт | L140: 0
A141: 0 | B141: 117 | C141: RW-FRC25 | D141: 2 1/4 12UN 2 1/8 адаптер | I141: шт | L141: 0
A142: 0 | B142: 118 | C142: RW-ARC29 | D142: 1 1/4 12UN 7/8 адаптер переходник угловой | I142: шт | L142: 0
A143: 0 | B143: 119 | C143: RW-ARC37 | D143: 1 3/4 12UN 1 3/8 адаптер переходник угловой | I143: шт | L143: 0
A144: 0 | B144: 120 | C144: Тэн картера 110-240v | D144: 462/500mm Для компрессоров серии INVOTECH 2-13HP 35W | I144: шт | L144: 0
A145: 0 | B145: =B144+1 -> 121 | C145: Тэн картера 110-240v | D145: 537/575mm Для компрессоров серии INVOTECH 2-13HP 55W | I145: шт | L145: 0
A146: 0 | B146: =B145+1 -> 122 | C146: Тэн картера 110-240v | D146: 912/950mm Для компрессоров серии INVOTECH 20-25HP 90W | I146: шт | L146: =J146*K146 -> 0
A147: =SUM(J147:J162) -> 0 | B147: Серия YH R407, R22, 3F, (наличие смотрового стекла, удобно для использования в уравнительной линии тандема и централи) Рабочий режим кипения на R407C от +10 до-25C. | L147: 0
A148: =A147 -> 0 | B148: № | C148: Модель | D148: Электрические параметры | E148: Диаметр трубы Ø mm | F148: R407, R22 | H148: Кол-во в упаковке | I148: Ед. изм. | L148: 0
A149: =A147 -> 0 | L149: 0
A150: =J150 -> 0 | B150: =B146+1 -> 123 | C150: YH69T1G-100 2HP | D150: 2160w 4.8A | E150: 22-12mm 28 - 16mm присоединение под пайку | F150: 22400 Btu/h | H150: 1 | I150: шт | L150: 0
A151: 0 | B151: =B150+1 -> 124 | C151: YH89T1G-100 3HP | D151: 2680w 5.3A | F151: 29300 Btu/h | I151: шт | L151: 0
A152: 0 | B152: 125 | C152: YH119T1G-100 4HP | D152: 3550w 7.1A | F152: 39200 Btu/h | I152: шт | L152: 0
A153: 0 | B153: 126 | C153: YH150T1G-100 5HP | D153: 4410w 8.4A | F153: 49400 Btu/h | I153: шт | L153: 0
A154: 0 | B154: 127 | C154: YH175T1G-100 6HP | D154: 5030w 9.1A | F154: 57600 Btu/h | I154: шт | L154: 0
A155: 0 | B155: 128 | C155: YH200T1G-100 7HP | D155: 5970w 11.2A | F155: 66800 Btu/h | I155: шт | L155: 0
A156: 0 | B156: 129 | C156: YH230T1S-100 8HP | D156: 6770w 12.9A | E156: 28-22mm 35-22mm присоединение под резьбу | F156: 76100 Btu/h | I156: шт | L156: 0
A157: 0 | B157: 130 | C157: YH266T1S-100 9HP | D157: 7780w 14.8A | F157: 87600 Btu/h | I157: шт | L157: 0
A158: 0 | B158: =1+B157 -> 131 | C158: YH307T1S-100 10HP | D158: 8910w 15.6A | F158: 101200 Btu/h | I158: шт | L158: 0
A159: 0 | B159: 132 | C159: YH355T1S-100 12HP | D159: 10240w 17.8A | F159: 116900 Btu/h | I159: шт | L159: 0
A160: 0 | B160: 133 | C160: YH450T1S-100 15HP | D160: 13156w 20.5A | F160: 143600 Btu/h | I160: шт | L160: 0
A161: 0 | B161: 134 | C161: YH610T1S-100 20HP | D161: 17444w 31.5A | E161: 42-28mm | F161: 200000 Btu/h | I161: шт | L161: 0
A162: 0 | B162: 135 | C162: YH720T1S-100 25HP | D162: 20547w 36.7A | F162: 250000 Btu/h | I162: шт | L162: 0
A163: =SUM(J163:J175) -> 0 | B163: Серия YH R410A 3F соединение под пайку | L163: 0
A164: 0 | B164: =B162+1 -> 136 | C164: YH95C1G-100 3.5HP | D164: 3170w 5.8A | E164: 22 - 12mm 28 - 16mm | F164: 32700 Btu/h | H164: 1 | I164: шт | L164: 0
A165: 0 | B165: =B164+1 -> 137 | C165: YH119C1G-100 4HP | D165: 3888w 7.4A | F165: 40900 Btu/h | I165: шт | L165: 0
A166: 0 | B166: =B165+1 -> 138 | C166: YH150C1G-100 5HP | D166: 4854w 8.6A | F166: 51600 Btu/h | I166: шт | L166: 0
A167: 0 | B167: =1+B166 -> 139 | C167: YH175C1G-100 6HP | D167: 5545w 9.7A | F167: 59500 Btu/h | I167: шт | L167: 0
A168: 0 | B168: 140 | C168: YH200C1G-100 7HP | D168: 6200w 11.6A | F168: 70000 Btu/h | I168: шт | L168: 0
A169: 0 | B169: =1+B168 -> 141 | C169: YH230C1G-100 8HP | D169: 7210w 13.4A | E169: 28 - 22mm 35 - 22mm | F169: 79200 Btu/h | I169: шт | L169: 0
A170: 0 | B170: 142 | C170: YH292C1G-100 10HP | D170: 9070w 15.8A | F170: 100500 Btu/h | I170: шт | L170: 0
A171: 0 | B171: =1+B170 -> 143 | C171: YH355C1G-100 12HP | D171: 10800w 18.2A | F171: 119800 Btu/h | I171: шт | L171: 0
A172: 0 | B172: =1+B171 -> 144 | C172: YH450C1S-105 15HP | D172: 13759w 24.1A | E172: 35-22mm | F172: 15000 Btu/h | I172: шт | L172: 0
A173: 0 | B173: 145 | C173: YH610C1S-100 20HP | D173: 18620w 33.6A | E173: 42-28mm | F173: 20000 Btu/h | I173: шт | L173: 0
A174: 0 | B174: 146 | C174: YH720C1S-100 25HP | D174: 21254w 38.5A | F174: 25000 Btu/h | I174: шт | L174: 0
A175: 0 | B175: 147 | C175: YH880C1S-100 30HP | D175: 26800w 50A | F175: 30000 Btu/h | I175: шт | L175: 0
A176: =SUM(J176:J192) -> 0 | B176: Герметичные компрессоры ANKANG серия QR3 - QL3 3F в комплекте с вентилями | L176: 0
A177: =A176 -> 0 | B177: № | C177: Модель | D177: Объем цилиндра, см3 | E177: Электрические параметры | F177: трубы Ø mm | H177: Кол-во в упаковке | I177: Ед. изм. | L177: 0
A178: =A176 -> 0 | F178: Всас./Нагнет. | L178: 0
A179: 0 | B179: =B175+1 -> 148 | C179: QR-44 2HP 220v | D179: 44 | E179: 2300w 11.3A | F179: 16 / 12 | H179: 1 | I179: шт | L179: 0
A180: 0 | B180: =B179+1 -> 149 | C180: QR3-44 2HP | D180: 44 | E180: 2300w 3.80A | I180: шт | L180: 0
A181: 0 | B181: 150 | C181: QR3-52 2.5HP | D181: 52 | E181: 2700w 4.70A | I181: шт | L181: 0
A182: 0 | B182: 151 | C182: QR3-58 3HP | D182: 58.2 | E182: 3080w 5.00A | F182: 22 / 16 | I182: шт | L182: 0
A183: 0 | B183: 152 | C183: QR3-62 3HP | D183: 62.7 | E183: 3310w 5.40A | I183: шт | L183: 0
A184: 0 | B184: 153 | C184: QR3-74 3.5HP | D184: 74.2 | E184: 4250w 6.70A | I184: шт | L184: 0
A185: 0 | B185: 154 | C185: QR3-90 4HP | D185: 90.2 | E185: 4600w 7.30A | F185: 22 / 16 | I185: шт | L185: 0
A186: 0 | B186: 155 | C186: QR3-112 5HP | D186: 112.5 | E186: 6100w 9.60A | I186: шт | L186: 0
A187: 0 | B187: 156 | C187: QR3-124 6HP | D187: 124.4 | E187: 6800w 10.60A | F187: 28 / 16 | I187: шт | L187: 0
A188: 0 | B188: 157 | C188: QR3-134 7HP | D188: 134.8 | E188: 7400w 11.70A | I188: шт | L188: 0
A189: 0 | B189: 158 | C189: QL3-52 2.5HP | D189: 52 | E189: 1380w 2.50A | F189: 16 / 12 | I189: шт | L189: 0
A190: 0 | B190: 159 | C190: QL3-74 3.5HP | D190: 74.2 | E190: 2060w 3.20A | I190: шт | L190: 0
A191: 0 | B191: 160 | C191: QL3-112 5HP | D191: 112.5 | E191: 2830w 5.00A | F191: 22 / 16 | I191: шт | L191: 0
A192: 0 | B192: 161 | C192: QL3-134 7HP | D192: 134.8 | E192: 3620w 6.30A | F192: 28 / 16 | I192: шт | L192: 0
A193: =SUM(J193:J204)+A199 -> 0 | B193: Герметичные компрессоры CUBIGEL 220 - 240v 50Hz R404, 507 | L193: 0
A194: =SUM(J194:J198) -> 0 | B194: № | C194: Модель LBP -10 / -40c | D194: НР | E194: Электрические параметры | F194: Обьемная пр-ть см3/час | G194: Мотор | H194: Кол-во в упаковке | I194: Ед. изм. | L194: 0
L195: 0
A196: 0 | B196: =B192+1 -> 162 | C196: MX 21 FB | D196: 3/4 | E196: 700w - 3.5A | F196: 20.72 | I196: шт | L196: 0
A197: 0 | B197: =B196+1 -> 163 | C197: MS 26 FB под вентиль 12мм | D197: 3/4 | E197: 910w - 4.0A | F197: 25.93 | I197: шт | L197: 0
A198: 0 | B198: =B197+1 -> 164 | C198: MS 34 F3 под вентиль 16мм | D198: 1 | E198: 1120w - 2.2A | F198: 34.42 | G198: 3F | I198: шт | L198: 0
A199: =SUM(J199:J204) -> 0 | B199: =B198+1 -> 165 | C199: Модель HBP +10 / -25c | G199: CSR | H199: Кол-во в упаковке | I199: Ед. изм. | L199: 0
A200: 0 | B200: 166 | C200: MX 16 TB | D200: 3/4 | E200: 1000w - 5.0A | F200: 16.03 | I200: шт | L200: 0
... 1520 more rows
